fUST/lending_fUST_20241006
["ID","MTS","AMOUNT","RATE_DAILY","PERIOD"]
[339956163,1728214246624,-50046.7144885,0.00013668,2]
[339956164,1728214246634,-9386.28748244,0.00013668,2]
[339956165,1728214246643,-500.0,0.00013673,2]
[339956166,1728214246653,-500.0,0.00013673,2]
[339956167,1728214246662,-500.0,0.00013673,2]
[339956168,1728214246672,-500.0,0.00013673,2]
[339956169,1728214246682,-500.0,0.00013673,2]
[339956170,1728214246696,-500.0,0.00013673,2]
[339956171,1728214246706,-500.0,0.00013673,2]
[339956172,1728214246715,-312.81875358,0.00013673,2]
[339956173,1728214246725,-500.0,0.00013673,2]
[339956174,1728214246734,-1000.0,0.00013677,2]
[339956175,1728214246744,-100093.428977,0.00013678,2]
[339956176,1728214246754,-18772.5749649,0.00013678,2]
[339956177,1728214246764,-28158.8624473,0.00013678,2]
[339956178,1728214246773,-151.0,0.00013678,2]
[339956179,1728214246784,-151.0,0.00013678,2]
[339956180,1728214246794,-151.0,0.00013678,2]
[339956181,1728214246803,-151.0,0.00013678,2]
[339956182,1728214246813,-151.0,0.00013678,2]
[339956183,1728214246822,-151.0,0.00013678,2]
[339956184,1728214246832,-1086.735079,0.00013678,2]
[339956185,1728214246842,-1086.735079,0.00013678,2]
[339956186,1728214246852,-1086.735079,0.00013678,2]
[339956187,1728214246862,-1086.735079,0.00013678,2]
[339956188,1728214246875,-151.0,0.00013678,2]
[339956189,1728214246884,-151.0,0.00013678,2]
[339956190,1728214246894,-151.0,0.00013678,2]
[339956191,1728214246905,-151.0,0.00013678,2]
[339956192,1728214246915,-151.0,0.00013678,2]
[339956193,1728214246926,-333.817288,0.00013678,2]
[339956194,1728214246936,-333.817288,0.00013678,2]
[339956195,1728214246946,-151.0,0.00013678,2]
[339956196,1728214246956,-151.0,0.00013678,2]
[339956197,1728214246967,-151.0,0.00013678,2]
[339956198,1728214246977,-151.0,0.00013678,2]
[339956199,1728214246987,-151.0,0.00013678,2]
[339956200,1728214246998,-1783.56829,0.00013678,2]
[339956201,1728214247010,-1783.56829,0.00013678,2]
[339956202,1728214247020,-995.230357,0.00013678,2]
[339956203,1728214247032,-995.230357,0.00013678,2]
[339956204,1728214247042,-151.0,0.00013678,2]
[339956205,1728214247052,-151.0,0.00013678,2]
[339956206,1728214247063,-151.0,0.00013678,2]
[339956207,1728214247072,-802.35127,0.00013678,2]
[339956208,1728214247083,-802.35127,0.00013678,2]
[339956209,1728214247094,-151.0,0.00013678,2]
[339956210,1728214247104,-151.0,0.00013678,2]
[339956211,1728214247114,-160.504789,0.00013678,2]
[339956212,1728214247124,-160.504789,0.00013678,2]
[339956213,1728214247134,-151.0,0.00013678,2]
[339956214,1728214247144,-151.0,0.00013678,2]
[339956215,1728214247154,-1163.226864,0.00013678,2]
[339956216,1728214247163,-1163.226864,0.00013678,2]
[339956217,1728214247173,-151.0,0.00013678,2]
[339956218,1728214247183,-151.0,0.00013678,2]
[339956219,1728214247192,-189.790472,0.00013678,2]
[339956220,1728214247202,-189.790472,0.00013678,2]
[339956221,1728214247212,-151.0,0.00013678,2]
[339956222,1728214247222,-199.404599,0.00013678,2]
[339956223,1728214247232,-151.0,0.00013678,2]
[339956224,1728214247241,-458.161005,0.00013678,2]
[339956225,1728214247251,-458.161005,0.00013678,2]
[339956226,1728214247260,-151.0,0.00013678,2]
[339956227,1728214247270,-1580.869294,0.00013678,2]
[339956228,1728214247281,-1580.869294,0.00013678,2]
[339956229,1728214247292,-1090.648669,0.00013678,2]
[339956230,1728214247301,-913.451038,0.00013678,2]
[339956231,1728214247310,-1090.648669,0.00013678,2]
[339956232,1728214247320,-913.451038,0.00013678,2]
[339956233,1728214247329,-151.0,0.00013678,2]
[339956234,1728214247340,-151.0,0.00013678,2]
[339956235,1728214247349,-843.272796,0.00013678,2]
[339956236,1728214247359,-843.272796,0.00013678,2]
[339956237,1728214247369,-223.987266,0.00013678,2]
[339956238,1728214247379,-223.987266,0.00013678,2]
[339956239,1728214247388,-151.0,0.00013678,2]
[339956240,1728214247399,-151.0,0.00013678,2]
[339956241,1728214247409,-156.123507,0.00013678,2]
[339956242,1728214247419,-211.039604,0.00013678,2]
[339956243,1728214247428,-211.039604,0.00013678,2]
[339956244,1728214247438,-474.051431,0.00013678,2]
[339956245,1728214247448,-151.374895,0.00013678,2]
[339956246,1728214247459,-665.617989,0.00013678,2]
[339956247,1728214247470,-474.051431,0.00013678,2]
[339956248,1728214247482,-665.617989,0.00013678,2]
[339956249,1728214247493,-151.0,0.00013678,2]
[339956250,1728214247504,-151.0,0.00013678,2]
[339956251,1728214247515,-935.70423,0.00013678,2]
[339956252,1728214247526,-935.70423,0.00013678,2]
[339956253,1728214247537,-935.70423,0.00013678,2]
[339956254,1728214247549,-935.70423,0.00013678,2]
[339956255,1728214247560,-935.70423,0.00013678,2]
[339956256,1728214247571,-935.70423,0.00013678,2]
[339956257,1728214247582,-151.0,0.00013678,2]
[339956258,1728214247592,-151.0,0.00013678,2]
[339956259,1728214247604,-151.0,0.00013678,2]
[339956260,1728214247614,-1210.569109,0.00013678,2]
[339956261,1728214247625,-1210.569109,0.00013678,2]
[339956262,1728214247635,-291.139684,0.00013678,2]
[339956263,1728214247646,-291.139684,0.00013678,2]
[339956264,1728214247657,-291.139684,0.00013678,2]
[339956265,1728214247667,-151.0,0.00013678,2]
[339956266,1728214247677,-291.139684,0.00013678,2]
[339956267,1728214247690,-291.139684,0.00013678,2]
[339956268,1728214247700,-291.139684,0.00013678,2]
[339956269,1728214247711,-475.002265,0.00013678,2]
[339956270,1728214247722,-475.002265,0.00013678,2]
[339956271,1728214247733,-475.002265,0.00013678,2]
[339956272,1728214247743,-475.002265,0.00013678,2]
[339956273,1728214247755,-475.002265,0.00013678,2]
[339956274,1728214247766,-475.002265,0.00013678,2]
[339956275,1728214247777,-151.0,0.00013678,2]
[339956276,1728214247789,-151.0,0.00013678,2]
[339956277,1728214247802,-151.0,0.00013678,2]
[339956278,1728214247813,-18772.5749649,0.00013678,2]
[339956279,1728214247824,-239.0,0.0001368,2]
[339956280,1728214247835,-27307.65631863,0.00013688,2]
[339956281,1728214247848,-1589.598704,0.00013688,2]
[339956365,1728215438449,-229.239331,0.00012,2]
[339956366,1728215438462,-161.422647,0.00012696,2]
[339956367,1728215438473,-161.422647,0.0001274,2]
[339956368,1728215438483,-161.422647,0.00012784,2]
[339956369,1728215438496,-161.422647,0.00012828,2]
[339956370,1728215438507,-161.422647,0.00012872,2]
[339956371,1728215438517,-216.7294625,0.00012905,2]
[339956372,1728215438527,-161.422647,0.00012916,2]
[339956373,1728215438537,-667.601692,0.0001292,2]
[339956374,1728215438548,-161.422647,0.0001296,2]
[339956375,1728215438559,-356.4709855,0.00013,2]
[339956376,1728215438573,-633.39370605,0.00013,2]
[339956377,1728215438585,-161.422647,0.00013005,2]
[339956378,1728215438596,-161.422647,0.00013049,2]
[339956379,1728215438607,-161.422647,0.00013093,2]
[339956380,1728215438616,-161.422647,0.00013137,2]
[339956381,1728215438626,-93.23673505,0.00013181,2]
[339956382,1728215438647,-68.18591195,0.00013181,2]
[339956383,1728215438658,-161.422647,0.00013225,2]
[339956384,1728215438669,-161.422647,0.00013269,2]
[339956385,1728215438679,-161.422647,0.00013313,2]
[339956386,1728215438690,-1109.32181418,0.00013345,2]
[339956387,1728215438701,-161.422647,0.00013357,2]
[339956388,1728215438711,-341.20451135,0.00013474,2]
[339956420,1728216064093,5000.0,0.00010209,2]
[339956422,1728216072527,5000.0,0.00010209,2]
[339956423,1728216081841,5000.0,0.00010209,2]
[339956424,1728216089763,5000.0,0.00010209,2]
[339956425,1728216098060,5000.0,0.00010209,2]
[339956434,1728216106505,5000.0,0.00010209,2]
[339956435,1728216114700,5000.0,0.00010209,2]
[339956436,1728216122703,5000.0,0.00010209,2]
[339956437,1728216131472,5000.0,0.00010209,2]
[339956438,1728216140456,5000.0,0.00010209,2]
[339956439,1728216148362,2079.18115004,0.00010209,2]
[339956440,1728216157318,5000.0,0.00010209,2]
[339956441,1728216172978,5000.0,0.00010209,2]
[339956442,1728216182955,206.11724146,0.0001,2]
[339956443,1728216188982,5000.0,0.00010209,2]
[339956444,1728216204421,5000.0,0.00010209,2]
[339956445,1728216220258,5000.0,0.00010209,2]
[339956446,1728216235582,5000.0,0.00010209,2]
[339956447,1728216251129,5000.0,0.00010209,2]
[339956448,1728216267165,5000.0,0.00010209,2]
[339956449,1728216283187,5000.0,0.00010209,2]
[339956450,1728216299665,2685.06938694,0.00010209,2]
[339956470,1728216632428,-217.777364,0.00012,2]
[339956471,1728216632438,-209.20479175,0.00012459,2]
[339956472,1728216632450,-395.78855265,0.00012459,2]
[339956473,1728216632460,-253.4485797,0.00012577,2]
[339956474,1728216632469,-27.67560108,0.00012601,2]
[339956491,1728216638656,-140.33645852,0.00012601,2]
[339956493,1728216638667,-288.43917065,0.00013474,2]
[339956496,1728216638679,-157.452757,0.00013474,2]
[339956498,1728216638690,-209.937013,0.00013474,2]
[339956500,1728216638701,-1000.0,0.00013563,2]
[339956502,1728216638712,-1756.42612236,0.00013568,2]
[339956504,1728216638723,-300.0,0.00013569,2]
[339956506,1728216638734,-300.0,0.00013569,2]
[339956508,1728216638745,-150.0,0.0001357,2]
[339956509,1728216638755,-150.164,0.0001357,2]
[339956510,1728216638765,-150.0,0.0001357,2]
[339956511,1728216638775,-150.048,0.0001357,2]
[339956512,1728216638786,-150.0,0.0001357,2]
[339956513,1728216638797,-150.0,0.0001357,2]
[339956514,1728216638808,-525.0,0.0001357,2]
[339956515,1728216638819,-1218.0,0.0001357,2]
[339956516,1728216638828,-168.966,0.00013589,2]
[339956517,1728216638838,-667.76580216,0.00013598,2]
[339956518,1728216638848,-153.0,0.000136,2]
[339956519,1728216638857,-1154.59650366,0.000136,3]
[339956520,1728216638866,-248.554002,0.000136,2]
[339956521,1728216638876,-629.643682,0.00013642,2]
[339956522,1728216638885,-151.0,0.00013647,2]
[339956523,1728216638895,-151.0,0.00013647,2]
[339956524,1728216638903,-151.0,0.00013647,2]
[339956525,1728216638913,-151.0,0.00013647,2]
[339956526,1728216638922,-151.0,0.00013647,2]
[339956527,1728216638931,-151.0,0.00013647,2]
[339956528,1728216638941,-218.743002,0.00013647,2]
[339956529,1728216638950,-1426.854632,0.00013647,2]
[339956530,1728216638959,-1426.854632,0.00013647,2]
[339956531,1728216638969,-151.0,0.00013658,2]
[339956532,1728216638978,-151.0,0.00013658,2]
[339956533,1728216638988,-151.0,0.00013658,2]
[339956534,1728216638997,-361.78762985,0.00013667,2]
[339956535,1728216639007,-35032.7001419,0.00013668,2]
[339956536,1728216639016,-151.0,0.00013668,2]
[339956537,1728216639025,-151.0,0.00013668,2]
[339956538,1728216639035,-151.0,0.00013668,2]
[339956539,1728216639044,-151.0,0.00013668,2]
[339956540,1728216639053,-151.0,0.00013668,2]
[339956541,1728216639062,-151.0,0.00013668,2]
[339956542,1728216639072,-202.406696,0.00013668,2]
[339956543,1728216639081,-151.0,0.00013668,2]
[339956544,1728216639090,-151.0,0.00013668,2]
[339956545,1728216639099,-153.748415,0.00013668,2]
[339956546,1728216639110,-151.0,0.00013668,2]
[339956547,1728216639119,-151.0,0.00013668,2]
[339956548,1728216639129,-1426.854632,0.00013668,2]
[339956549,1728216639140,-1426.854632,0.00013668,2]
[339956550,1728216639150,-912.76588787,0.0001367,2]
[339956551,1728216639160,-500.0,0.00013673,2]
[339956552,1728216639169,-500.0,0.00013673,2]
[339956553,1728216639178,-500.0,0.00013673,2]
[339956554,1728216639187,-500.0,0.00013673,2]
[339956555,1728216639197,-310.182522,0.00013673,2]
[339956556,1728216639206,-500.0,0.00013673,2]
[339956557,1728216639215,-501.29012445,0.00013673,2]
[339956558,1728216639225,-500.0,0.00013673,2]
[339956559,1728216639236,-13653.82815932,0.00013678,2]
[339956560,1728216639245,-2399.33121906,0.00013678,2]
[339956561,1728216639256,-37246.76095554,0.00013678,2]
[339956567,1728216640533,-207982.14003746,0.00013678,2]
[339956568,1728216640545,-855.4322761,0.00013687,2]
[339956569,1728216640555,-151.0,0.00013688,2]
[339956570,1728216640567,-151.0,0.00013688,2]
[339956571,1728216640577,-151.0,0.00013688,2]
[339956572,1728216640587,-151.0,0.00013688,2]
[339956573,1728216640599,-151.0,0.00013688,2]
[339956574,1728216640609,-151.0,0.00013688,2]
[339956575,1728216640620,-267.05383,0.00013688,2]
[339956576,1728216640632,-151.0,0.00013688,2]
[339956577,1728216640642,-151.0,0.00013688,2]
[339956578,1728216640653,-267.05383,0.00013688,2]
[339956579,1728216640662,-151.0,0.00013688,2]
[339956580,1728216640673,-151.0,0.00013688,2]
[339956581,1728216640682,-151.0,0.00013688,2]
[339956582,1728216640691,-151.0,0.00013688,2]
[339956583,1728216640703,-151.0,0.00013688,2]
[339956584,1728216640713,-876.938064,0.00013688,2]
[339956585,1728216640724,-981.583802,0.00013688,2]
[339956586,1728216640734,-876.938064,0.00013688,2]
[339956587,1728216640744,-758.945516,0.00013688,2]
[339956588,1728216640756,-758.945516,0.00013688,2]
[339956589,1728216640768,-151.0,0.00013688,2]
[339956590,1728216640777,-151.0,0.00013688,2]
[339956591,1728216640786,-151.0,0.00013688,2]
[339956592,1728216640795,-151.0,0.00013688,2]
[339956593,1728216640805,-294.768608,0.00013688,2]
[339956594,1728216640816,-151.0,0.00013688,2]
[339956595,1728216640826,-599.05619,0.00013688,2]
[339956596,1728216640836,-599.05619,0.00013688,2]
[339956597,1728216640845,-2298.142596,0.00013688,2]
[339956598,1728216640854,-599.05619,0.00013688,2]
[339956599,1728216640864,-599.05619,0.00013688,2]
[339956600,1728216640873,-2298.142596,0.00013688,2]
[339956601,1728216640882,-412.344905,0.00013688,2]
[339956602,1728216640892,-412.344905,0.00013688,2]
[339956603,1728216640902,-1089.512198,0.00013688,2]
[339956604,1728216640911,-1089.512198,0.00013688,2]
[339956605,1728216640920,-170.811424,0.00013688,2]
[339956606,1728216640929,-170.811424,0.00013688,2]
[339956607,1728216640938,-189.935644,0.00013688,2]
[339956608,1728216640948,-189.935644,0.00013688,2]
[339956609,1728216640957,-198.069506,0.00013688,2]
[339956610,1728216640966,-203.797779,0.00013688,2]
[339956611,1728216640975,-203.797779,0.00013688,2]
[339956612,1728216640984,-654.992961,0.00013688,2]
[339956613,1728216640993,-151.0,0.00013688,2]
[339956614,1728216641003,-654.992961,0.00013688,2]
[339956615,1728216641013,-201.588539,0.00013688,2]
[339956616,1728216641022,-201.588539,0.00013688,2]
[339956617,1728216641031,-822.105934,0.00013688,2]
[339956618,1728216641040,-426.646288,0.00013688,2]
[339956619,1728216641050,-822.105934,0.00013688,2]
[339956620,1728216641060,-426.646288,0.00013688,2]
[339956621,1728216641070,-193.488427,0.00013688,2]
[339956622,1728216641079,-1046.904178,0.00013688,2]
[339956623,1728216641088,-1046.904178,0.00013688,2]
[339956624,1728216641097,-151.0,0.00013688,2]
[339956625,1728216641107,-151.0,0.00013688,2]
[339956626,1728216641117,-1422.782365,0.00013688,2]
[339956627,1728216641126,-1422.782365,0.00013688,2]
[339956628,1728216641135,-151.0,0.00013688,2]
[339956629,1728216641146,-796.184286,0.00013688,2]
[339956630,1728216641155,-796.184286,0.00013688,2]
[339956631,1728216641165,-153.52700896,0.0001369,2]
[339956632,1728216641174,-500.0,0.00013698,2]
[339956633,1728216641183,-284.1081584,0.00013698,2]
[339956634,1728216641192,-204.36951954,0.00013698,2]
[339956635,1728216641201,-390.7188616,0.00013698,2]
[339956636,1728216641210,-500.0,0.00013698,2]
[339956637,1728216641220,-500.0,0.00013698,2]
[339956638,1728216641229,-500.0,0.00013698,2]
[339956639,1728216641238,-292.12465607,0.00013698,2]
[339956640,1728216641247,-500.0,0.00013698,2]
[339956641,1728216641258,-605.63303055,0.00013698,2]
[339956642,1728216641269,-500.0,0.00013698,2]
[339956643,1728216641278,-500.0,0.00013698,2]
[339956644,1728216641287,-500.0,0.00013698,2]
[339956645,1728216641297,-500.0,0.00013698,2]
[339956646,1728216641307,-500.0,0.00013698,2]
[339956647,1728216641317,-500.0,0.00013698,2]
[339956648,1728216641326,-500.0,0.00013698,2]
[339956649,1728216641336,-500.0,0.00013698,2]
[339956650,1728216641346,-500.0,0.00013698,2]
[339956651,1728216641355,-500.0,0.00013698,2]
[339956652,1728216641365,-500.0,0.00013698,2]
[339956653,1728216641374,-500.0,0.00013698,2]
[339956654,1728216641384,-500.0,0.00013698,2]
[339956655,1728216641393,-500.0,0.00013698,2]
[339956656,1728216641403,-500.0,0.00013698,2]
[339956657,1728216641413,-500.0,0.00013698,2]
[339956658,1728216641422,-500.0,0.00013698,2]
[339956659,1728216641431,-500.0,0.00013698,2]
[339956660,1728216641441,-500.0,0.00013698,2]
[339956661,1728216641450,-286.07688791,0.00013698,2]
[339956662,1728216641459,-500.0,0.00013698,2]
[339956663,1728216641469,-500.0,0.00013698,2]
[339956664,1728216641478,-500.0,0.00013698,2]
[339956665,1728216641487,-239.81947865,0.00013698,2]
[339956666,1728216641497,-539.24206672,0.00013698,2]
[339956667,1728216641507,-500.0,0.00013698,2]
[339956668,1728216641517,-500.0,0.00013698,2]
[339956669,1728216641527,-500.0,0.00013698,2]
[339956670,1728216641536,-347.5,0.00013698,2]
[339956671,1728216641545,-500.0,0.00013698,2]
[339956672,1728216641554,-500.0,0.00013698,2]
[339956673,1728216641563,-619.62459072,0.00013698,2]
[339956674,1728216641573,-500.0,0.00013698,2]
[339956675,1728216641582,-500.0,0.00013698,2]
[339956676,1728216641591,-500.0,0.00013698,2]
[339956677,1728216641600,-155.03988791,0.00013698,2]
[339956678,1728216641610,-420.68644613,0.00013698,2]
[339956679,1728216641619,-500.0,0.00013698,2]
[339956680,1728216641628,-500.0,0.00013698,2]
[339956681,1728216641638,-500.0,0.00013698,2]
[339956682,1728216641648,-500.0,0.00013698,2]
[339956683,1728216641657,-500.0,0.00013698,2]
[339956684,1728216641666,-513.5911011,0.00013698,2]
[339956685,1728216641675,-500.53089788,0.00013698,2]
[339956686,1728216641684,-500.0,0.00013698,2]
[339956687,1728216641694,-192.68098503,0.00013698,2]
[339956688,1728216641705,-264.2538722,0.00013698,2]
[339956689,1728216641715,-500.0,0.00013698,2]
[339956690,1728216641725,-164.31706301,0.00013698,2]
[339956691,1728216641734,-432.72522039,0.00013698,2]
[339956692,1728216641743,-151.0,0.00013698,2]
[339956693,1728216641752,-151.0,0.00013698,2]
[339956694,1728216641762,-151.0,0.00013698,2]
[339956695,1728216641771,-151.0,0.00013698,2]
[339956696,1728216641780,-151.0,0.00013698,2]
[339956697,1728216641789,-151.0,0.00013698,2]
[339956698,1728216641799,-151.0,0.00013698,2]
[339956699,1728216641808,-151.0,0.00013698,2]
[339956700,1728216641997,-151.0,0.00013698,2]
[339956701,1728216642008,-151.0,0.00013698,2]
[339956702,1728216642018,-167.697037,0.00013698,2]
[339956703,1728216642029,-151.0,0.00013698,2]
[339956704,1728216642039,-151.0,0.00013698,2]
[339956705,1728216642050,-151.0,0.00013698,2]
[339956706,1728216642061,-151.0,0.00013698,2]
[339956707,1728216642072,-151.0,0.00013698,2]
[339956708,1728216642082,-151.0,0.00013698,2]
[339956709,1728216642093,-152.122367,0.00013698,2]
[339956710,1728216642103,-151.0,0.00013698,2]
[339956711,1728216642113,-500.0,0.00013698,2]
[339956712,1728216642124,-511.43573774,0.00013698,2]
[339956713,1728216642133,-151.0,0.00013698,2]
[339956714,1728216642143,-151.0,0.00013698,2]
[339956715,1728216642154,-151.0,0.00013698,2]
[339956716,1728216642165,-151.0,0.00013698,2]
[339956717,1728216642175,-205.259596,0.00013698,2]
[339956718,1728216642186,-500.0,0.00013698,2]
[339956719,1728216642198,-175.98233897,0.00013698,2]
[339956720,1728216642207,-562.37,0.00013698,2]
[339956721,1728216642216,-500.0,0.00013698,2]
[339956722,1728216642225,-500.0,0.00013698,2]
[339956723,1728216642234,-500.0,0.00013698,2]
[339956724,1728216642244,-500.0,0.00013698,2]
[339956725,1728216642253,-500.0,0.00013698,2]
[339956726,1728216642262,-783.17,0.00013698,2]
[339956727,1728216642271,-500.0,0.00013698,2]
[339956728,1728216642281,-500.0,0.00013698,2]
[339956729,1728216642290,-501.5227972,0.00013698,2]
[339956730,1728216642299,-500.0,0.00013698,2]
[339956731,1728216642309,-500.0,0.00013698,2]
[339956732,1728216642318,-500.0,0.00013698,2]
[339956733,1728216642327,-500.0,0.00013698,2]
[339956734,1728216642337,-650.63,0.00013698,2]
[339956735,1728216642347,-500.0,0.00013698,2]
[339956736,1728216642356,-704.47,0.00013698,2]
[339956737,1728216642365,-500.0,0.00013698,2]
[339956738,1728216642375,-500.0,0.00013698,2]
[339956739,1728216642384,-500.0,0.00013698,2]
[339956740,1728216642402,-513.83,0.00013698,2]
[339956741,1728216642411,-500.0,0.00013698,2]
[339956742,1728216642421,-500.0,0.00013698,2]
[339956743,1728216642431,-500.0,0.00013698,2]
[339956744,1728216642441,-539.03,0.00013698,2]
[339956745,1728216642451,-500.0,0.00013698,2]
[339956746,1728216642460,-500.0,0.00013698,2]
[339956747,1728216642469,-550.83506309,0.00013698,2]
[339956748,1728216642479,-500.0,0.00013698,2]
[339956749,1728216642488,-500.0,0.00013698,2]
[339956750,1728216642498,-500.0,0.00013698,2]
[339956751,1728216642508,-500.0,0.00013698,2]
[339956752,1728216642517,-500.0,0.00013698,2]
[339956753,1728216642527,-500.0,0.00013698,2]
[339956754,1728216642537,-851.36,0.00013698,2]
[339956755,1728216642546,-500.0,0.00013698,2]
[339956756,1728216642556,-500.0,0.00013698,2]
[339956757,1728216642565,-500.0,0.00013698,2]
[339956758,1728216642575,-500.0,0.00013698,2]
[339956759,1728216642584,-500.0,0.00013698,2]
[339956760,1728216642594,-500.0,0.00013698,2]
[339956761,1728216642604,-500.0,0.00013698,2]
[339956762,1728216642614,-500.0,0.00013698,2]
[339956763,1728216642623,-500.0,0.00013698,2]
[339956764,1728216642633,-500.0,0.00013698,2]
[339956765,1728216642645,-500.0,0.00013698,2]
[339956766,1728216642655,-500.0,0.00013698,2]
[339956767,1728216642664,-500.0,0.00013698,2]
[339956768,1728216642672,-599.98671763,0.00013698,2]
[339956769,1728216642683,-500.0,0.00013698,2]
[339956770,1728216642694,-500.0,0.00013698,2]
[339956771,1728216642705,-500.0,0.00013698,2]
[339956772,1728216642715,-500.0,0.00013698,2]
[339956773,1728216642725,-500.0,0.00013698,2]
[339956774,1728216642735,-852.79,0.00013698,2]
[339956775,1728216642746,-500.0,0.00013698,2]
[339956776,1728216642757,-151.0,0.00013698,2]
[339956777,1728216642766,-151.0,0.00013698,2]
[339956778,1728216642778,-151.0,0.00013698,2]
[339956779,1728216642788,-500.0,0.00013698,2]
[339956780,1728216642800,-151.0,0.00013698,2]
[339956781,1728216642810,-151.0,0.00013698,2]
[339956782,1728216642819,-151.0,0.00013698,2]
[339956783,1728216642829,-151.0,0.00013698,2]
[339956784,1728216642837,-262.68034295,0.00013698,2]
[339956785,1728216642846,-500.0,0.00013698,2]
[339956786,1728216642855,-642.66,0.00013698,2]
[339956787,1728216642864,-510.73,0.00013698,2]
[339956788,1728216642873,-500.0,0.00013698,2]
[339956789,1728216642882,-800.78,0.00013698,2]
[339956790,1728216642892,-500.0,0.00013698,2]
[339956791,1728216642901,-500.0,0.00013698,2]
[339956792,1728216642910,-500.0,0.00013698,2]
[339956793,1728216642920,-500.0,0.00013698,2]
[339956794,1728216642929,-1311.37,0.00013698,2]
[339956796,1728216642938,-500.0,0.00013698,2]
[339956798,1728216642947,-500.0,0.00013698,2]
[339956799,1728216642956,-500.0,0.00013698,2]
[339956800,1728216642965,-500.0,0.00013698,2]
[339956801,1728216642974,-152.74082099,0.00013698,2]
[339956802,1728216642984,-343.34790887,0.00013698,2]
[339956803,1728216642993,-1340.0,0.00013698,2]
[339956804,1728216643002,-500.0,0.00013698,2]
[339956805,1728216643011,-500.0,0.00013698,2]
[339956806,1728216643020,-500.0,0.00013698,2]
[339956807,1728216643030,-500.0,0.00013698,2]
[339956809,1728216643039,-500.0,0.00013698,2]
[339956810,1728216643048,-500.0,0.00013698,2]
[339956811,1728216643057,-500.0,0.00013698,2]
[339956812,1728216643067,-151.0,0.00013698,2]
[339956813,1728216643076,-151.0,0.00013698,2]
[339956814,1728216643086,-151.0,0.00013698,2]
[339956815,1728216643095,-500.0,0.00013698,2]
[339956816,1728216643104,-151.0,0.00013698,2]
[339956817,1728216643114,-151.0,0.00013698,2]
[339956819,1728216643123,-151.0,0.00013698,2]
[339956820,1728216643132,-623.29,0.00013698,2]
[339956822,1728216643143,-500.0,0.00013698,2]
[339956823,1728216643153,-562.84177196,0.00013698,2]
[339956825,1728216643162,-500.0,0.00013698,2]
[339956826,1728216643172,-500.0,0.00013698,2]
[339956828,1728216643181,-542.07,0.00013698,2]
[339956829,1728216643190,-618.40642688,0.00013698,2]
[339956831,1728216643199,-680.3,0.00013698,2]
[339956833,1728216643209,-500.0,0.00013698,2]
[339956834,1728216643219,-500.0,0.00013698,2]
[339956836,1728216643228,-500.0,0.00013698,2]
[339956837,1728216643237,-500.0,0.00013698,2]
[339956839,1728216643246,-500.0,0.00013698,2]
[339956841,1728216643256,-500.0,0.00013698,2]
[339956842,1728216643265,-674.6,0.00013698,2]
[339956844,1728216643274,-500.0,0.00013698,2]
[339956846,1728216643285,-500.0,0.00013698,2]
[339956847,1728216643294,-500.0,0.00013698,2]
[339956850,1728216643304,-500.0,0.00013698,2]